fUSD/lending_fUSD_20260217
["ID","MTS","AMOUNT","RATE_DAILY","PERIOD"]
[405839121,1771351845220,-586.00467181,0.00013698,2]
[405839122,1771351845229,-500.0,0.00013698,2]
[405839123,1771351845239,-500.0,0.00013698,2]
[405839124,1771351845249,-500.0,0.00013698,2]
[405839125,1771351845259,-500.0,0.00013698,2]
[405839126,1771351845269,-500.0,0.00013698,2]
[405839127,1771351845279,-321.35543779,0.00013698,2]
[405839129,1771351845289,-500.0,0.00013698,2]
[405839130,1771351845299,-500.0,0.00013698,2]
[405839131,1771351845308,-500.0,0.00013698,2]
[405839132,1771351845319,-500.0,0.00013698,2]
[405839133,1771351845329,-463.4906551,0.00013698,2]
[405839134,1771351845343,-500.0,0.00013698,2]
[405839135,1771351845353,-500.0,0.00013698,2]
[405839136,1771351845364,-509.4313423,0.00013698,2]
[405839137,1771351845374,-500.0,0.00013698,2]
[405839138,1771351845385,-500.0,0.00013698,2]
[405839139,1771351845396,-571.27519115,0.00013698,2]
[405839140,1771351845407,-1013.23,0.00013698,2]
[405839141,1771351845418,-1013.23,0.00013698,2]
[405839142,1771351845428,-1013.23,0.00013698,2]
[405839143,1771351845439,-1013.23,0.00013698,2]
[405839144,1771351845450,-1013.23,0.00013698,2]
[405839145,1771351845462,-1013.23,0.00013698,2]
[405839146,1771351845472,-1013.23,0.00013698,2]
[405839147,1771351845483,-1013.23,0.00013698,2]
[405839148,1771351845493,-1013.23,0.00013698,2]
[405839149,1771351845504,-1013.23,0.00013698,2]
[405839150,1771351845514,-1013.23,0.00013698,2]
[405839151,1771351845524,-1013.23,0.00013698,2]
[405839152,1771351845534,-1013.23,0.00013698,2]
[405839153,1771351845545,-1013.23,0.00013698,2]
[405839154,1771351845555,-1013.23,0.00013698,2]
[405839155,1771351845565,-1013.23,0.00013698,2]
[405839156,1771351845580,-1013.23,0.00013698,2]
[405839157,1771351845590,-1013.23,0.00013698,2]
[405839158,1771351845601,-1013.23,0.00013698,2]
[405839159,1771351845611,-1013.23,0.00013698,2]
[405839160,1771351845622,-1013.23,0.00013698,2]
[405839161,1771351845632,-1013.23,0.00013698,2]
[405839162,1771351845642,-1013.23,0.00013698,2]
[405839163,1771351845653,-1013.32589873,0.00013698,2]
[405839164,1771351845664,-607.92,0.00013698,2]
[405839165,1771351845673,-607.92,0.00013698,2]
[405839166,1771351845684,-607.92,0.00013698,2]
[405839167,1771351845694,-607.92,0.00013698,2]
[405839168,1771351845704,-607.92,0.00013698,2]
[405839169,1771351845714,-607.92,0.00013698,2]
[405839170,1771351845724,-607.92,0.00013698,2]
[405839171,1771351845743,-607.92,0.00013698,2]
[405839172,1771351845754,-607.92,0.00013698,2]
[405839173,1771351845764,-607.92,0.00013698,2]
[405839174,1771351845774,-607.92,0.00013698,2]
[405839175,1771351845783,-607.92,0.00013698,2]
[405839176,1771351845793,-607.92,0.00013698,2]
[405839177,1771351845803,-607.92,0.00013698,2]
[405839178,1771351845813,-607.92,0.00013698,2]
[405839179,1771351845825,-607.92,0.00013698,2]
[405839180,1771351845835,-607.92,0.00013698,2]
[405839181,1771351845844,-607.92,0.00013698,2]
[405839182,1771351845854,-607.92,0.00013698,2]
[405839183,1771351845864,-607.92,0.00013698,2]
[405839184,1771351845873,-607.92,0.00013698,2]
[405839185,1771351845883,-607.92,0.00013698,2]
[405839186,1771351845893,-607.92,0.00013698,2]
[405839187,1771351845902,-607.92,0.00013698,2]
[405839188,1771351845912,-1139.08,0.00013698,2]
[405839189,1771351845921,-1139.08,0.00013698,2]
[405839190,1771351845931,-1139.08,0.00013698,2]
[405839192,1771351845940,-1139.08,0.00013698,2]
[405839193,1771351845950,-1139.08,0.00013698,2]
[405839194,1771351845960,-1139.08,0.00013698,2]
[405839195,1771351845969,-1139.08,0.00013698,2]
[405839196,1771351845980,-1139.08,0.00013698,2]
[405839197,1771351845991,-1139.08,0.00013698,2]
[405839198,1771351846001,-1139.08,0.00013698,2]
[405839199,1771351846011,-1139.08,0.00013698,2]
[405839200,1771351846021,-1139.08,0.00013698,2]
[405839201,1771351846031,-1139.08,0.00013698,2]
[405839202,1771351846040,-1139.08,0.00013698,2]
[405839203,1771351846051,-1139.08,0.00013698,2]
[405839204,1771351846060,-1139.08,0.00013698,2]
[405839205,1771351846072,-1139.08,0.00013698,2]
[405839206,1771351846084,-1139.08,0.00013698,2]
[405839207,1771351846093,-1139.08,0.00013698,2]
[405839208,1771351846103,-1139.08,0.00013698,2]
[405839209,1771351846118,-1139.08,0.00013698,2]
[405839210,1771351846128,-1139.08,0.00013698,2]
[405839211,1771351846138,-1139.08,0.00013698,2]
[405839212,1771351846150,-1139.2,0.00013698,2]
[405839213,1771351846159,-500.0,0.00013698,2]
[405839214,1771351846169,-536.56841648,0.00013698,2]
[405839215,1771351846179,-500.0,0.00013698,2]
[405839216,1771351846189,-500.0,0.00013698,2]
[405839217,1771351846200,-500.0,0.00013698,2]
[405839218,1771351846211,-500.0,0.00013698,2]
[405839219,1771351846221,-500.0,0.00013698,2]
[405839220,1771351846233,-500.0,0.00013698,2]
[405839221,1771351846243,-500.0,0.00013698,2]
[405839222,1771351846252,-500.0,0.00013698,2]
[405839223,1771351846263,-500.0,0.00013698,2]
[405839224,1771351846272,-500.0,0.00013698,2]
[405839225,1771351846282,-500.0,0.00013698,2]
[405839226,1771351846292,-500.0,0.00013698,2]
[405839227,1771351846302,-500.0,0.00013698,2]
[405839228,1771351846312,-500.0,0.00013698,2]
[405839229,1771351846323,-500.0,0.00013698,2]
[405839230,1771351846333,-500.0,0.00013698,2]
[405839231,1771351846343,-500.0,0.00013698,2]
[405839232,1771351846353,-500.0,0.00013698,2]
[405839233,1771351846364,-500.0,0.00013698,2]
[405839234,1771351846374,-500.0,0.00013698,2]
[405839235,1771351846384,-500.0,0.00013698,2]
[405839236,1771351846394,-500.0,0.00013698,2]
[405839237,1771351846404,-383.99953744,0.00013698,2]
[405839238,1771351846413,-546.97,0.00013698,2]
[405839239,1771351846423,-546.97,0.00013698,2]
[405839240,1771351846433,-546.97,0.00013698,2]
[405839241,1771351846443,-546.97,0.00013698,2]
[405839242,1771351846453,-546.97,0.00013698,2]
[405839243,1771351846463,-546.97,0.00013698,2]
[405839244,1771351846473,-546.97,0.00013698,2]
[405839245,1771351846483,-546.97,0.00013698,2]
[405839246,1771351846493,-546.97,0.00013698,2]
[405839247,1771351846507,-546.97,0.00013698,2]
[405839248,1771351846518,-546.97,0.00013698,2]
[405839249,1771351846529,-546.97,0.00013698,2]
[405839250,1771351846539,-546.97,0.00013698,2]
[405839251,1771351846548,-546.97,0.00013698,2]
[405839252,1771351846558,-546.97,0.00013698,2]
[405839253,1771351846568,-546.97,0.00013698,2]
[405839254,1771351846579,-546.97,0.00013698,2]
[405839255,1771351846588,-546.97,0.00013698,2]
[405839256,1771351846599,-546.97,0.00013698,2]
[405839257,1771351846609,-546.97,0.00013698,2]
[405839258,1771351846619,-546.97,0.00013698,2]
[405839259,1771351846628,-546.97,0.00013698,2]
[405839260,1771351846638,-546.97,0.00013698,2]
[405839261,1771351846647,-547.09394166,0.00013698,2]
[405839262,1771351846657,-1479.1,0.00013698,2]
[405839263,1771351846667,-1479.1,0.00013698,2]
[405839264,1771351846676,-1479.1,0.00013698,2]
[405839265,1771351846686,-1479.1,0.00013698,2]
[405839266,1771351846697,-1479.1,0.00013698,2]
[405839267,1771351846707,-1479.1,0.00013698,2]
[405839268,1771351846717,-1479.1,0.00013698,2]
[405839269,1771351846727,-1479.1,0.00013698,2]
[405839270,1771351846737,-1479.1,0.00013698,2]
[405839271,1771351846746,-1479.1,0.00013698,2]
[405839272,1771351846756,-1479.1,0.00013698,2]
[405839273,1771351846765,-1479.1,0.00013698,2]
[405839274,1771351846775,-1479.1,0.00013698,2]
[405839275,1771351846784,-1479.1,0.00013698,2]
[405839276,1771351846794,-1479.1,0.00013698,2]
[405839277,1771351846803,-1479.1,0.00013698,2]
[405839278,1771351846812,-1479.1,0.00013698,2]
[405839279,1771351846822,-1479.1,0.00013698,2]
[405839280,1771351846832,-1479.1,0.00013698,2]
[405839281,1771351846841,-1479.1,0.00013698,2]
[405839282,1771351846850,-1479.1,0.00013698,2]
[405839283,1771351846859,-1479.1,0.00013698,2]
[405839284,1771351846869,-1479.1,0.00013698,2]
[405839285,1771351846879,-1479.19350963,0.00013698,2]
[405839286,1771351846888,-391.46615766,0.00013698,2]
[405839287,1771351846897,-500.0,0.00013698,2]
[405839288,1771351846907,-500.0,0.00013698,2]
[405839289,1771351846916,-500.0,0.00013698,2]
[405839290,1771351846925,-500.0,0.00013698,2]
[405839291,1771351846935,-500.0,0.00013698,2]
[405839292,1771351846944,-500.0,0.00013698,2]
[405839293,1771351846954,-500.0,0.00013698,2]
[405839294,1771351846963,-500.0,0.00013698,2]
[405839295,1771351846973,-500.0,0.00013698,2]
[405839296,1771351846983,-500.0,0.00013698,2]
[405839297,1771351846993,-500.0,0.00013698,2]
[405839298,1771351847003,-500.0,0.00013698,2]
[405839299,1771351847012,-200.92210999,0.00013698,2]
[405839300,1771351847022,-1546.47,0.00013698,2]
[405839301,1771351847031,-1546.47,0.00013698,2]
[405839302,1771351847041,-1546.47,0.00013698,2]
[405839303,1771351847051,-1546.47,0.00013698,2]
[405839304,1771351847061,-1546.47,0.00013698,2]
[405839305,1771351847073,-1546.47,0.00013698,2]
[405839306,1771351847083,-1546.47,0.00013698,2]
[405839307,1771351847092,-1546.47,0.00013698,2]
[405839308,1771351847408,-1546.47,0.00013698,2]
[405839309,1771351847417,-1546.47,0.00013698,2]
[405839310,1771351847427,-1546.47,0.00013698,2]
[405839311,1771351847436,-1546.47,0.00013698,2]
[405839312,1771351847445,-1546.47,0.00013698,2]
[405839313,1771351847455,-1546.47,0.00013698,2]
[405839314,1771351847464,-1546.47,0.00013698,2]
[405839315,1771351847473,-1546.47,0.00013698,2]
[405839316,1771351847483,-1546.47,0.00013698,2]
[405839317,1771351847492,-1546.47,0.00013698,2]
[405839318,1771351847501,-1546.47,0.00013698,2]
[405839319,1771351847510,-1546.47,0.00013698,2]
[405839320,1771351847520,-1546.47,0.00013698,2]
[405839321,1771351847529,-1546.47,0.00013698,2]
[405839322,1771351847539,-1546.47,0.00013698,2]
[405839323,1771351847548,-1546.51311819,0.00013698,2]
[405839324,1771351847558,-500.0,0.00013698,2]
[405839325,1771351847567,-500.0,0.00013698,2]
[405839326,1771351847578,-500.0,0.00013698,2]
[405839327,1771351847588,-500.0,0.00013698,2]
[405839328,1771351847597,-500.0,0.00013698,2]
[405839329,1771351847606,-494.24526323,0.00013698,2]
[405839330,1771351847614,-516.5,0.00013698,2]
[405839331,1771351847622,-516.5,0.00013698,2]
[405839332,1771351847630,-516.5,0.00013698,2]
[405839333,1771351847639,-516.5,0.00013698,2]
[405839334,1771351847646,-516.5,0.00013698,2]
[405839335,1771351847654,-516.5,0.00013698,2]
[405839336,1771351847664,-516.5,0.00013698,2]
[405839337,1771351847675,-516.5,0.00013698,2]
[405839338,1771351847685,-516.5,0.00013698,2]
[405839339,1771351847697,-516.5,0.00013698,2]
[405839340,1771351847708,-516.5,0.00013698,2]
[405839341,1771351847719,-516.5,0.00013698,2]
[405839342,1771351847731,-516.5,0.00013698,2]
[405839343,1771351847741,-516.5,0.00013698,2]
[405839344,1771351847753,-516.5,0.00013698,2]
[405839345,1771351847765,-516.5,0.00013698,2]
[405839346,1771351847777,-516.5,0.00013698,2]
[405839347,1771351847787,-516.5,0.00013698,2]
[405839348,1771351847799,-516.5,0.00013698,2]
[405839349,1771351847811,-516.5,0.00013698,2]
[405839350,1771351847822,-516.5,0.00013698,2]
[405839351,1771351847833,-516.5,0.00013698,2]
[405839352,1771351847845,-516.5,0.00013698,2]
[405839353,1771351847857,-516.63,0.00013698,2]
[405839354,1771351847865,-500.0,0.00013698,2]
[405839355,1771351847874,-500.0,0.00013698,2]
[405839356,1771351847883,-500.0,0.00013698,2]
[405839357,1771351847892,-191.17661539,0.00013698,2]
[405839358,1771351847901,-500.0,0.00013698,2]
[405839359,1771351847911,-500.0,0.00013698,2]
[405839360,1771351847920,-500.0,0.00013698,2]
[405839361,1771351847929,-500.0,0.00013698,2]
[405839362,1771351847940,-500.0,0.00013698,2]
[405839363,1771351847950,-500.0,0.00013698,2]
[405839364,1771351847961,-500.0,0.00013698,2]
[405839365,1771351847972,-500.0,0.00013698,2]
[405839366,1771351847983,-500.0,0.00013698,2]
[405839367,1771351847993,-500.0,0.00013698,2]
[405839368,1771351848003,-500.0,0.00013698,2]
[405839369,1771351848013,-307.56,0.00013698,2]
[405839370,1771351848020,-500.0,0.00013698,2]
[405839371,1771351848027,-500.0,0.00013698,2]
[405839372,1771351848034,-500.0,0.00013698,2]
[405839373,1771351848041,-500.0,0.00013699,2]
[405839374,1771351848048,-151.02878078,0.00013699,2]
[405839375,1771351848055,-406.7,0.000137,2]
[405839376,1771351848061,-406.7,0.000137,2]
[405839377,1771351848069,-406.7,0.000137,2]
[405839378,1771351848080,-406.7,0.000137,2]
[405839379,1771351848086,-406.7,0.000137,2]
[405839380,1771351848093,-22024.54,0.000137,2]
[405839381,1771351848099,-22024.54,0.000137,2]
[405839382,1771351848106,-503.8182606,0.00013816,2]
[405839383,1771351848112,-2000.0,0.00013816,2]
[405839384,1771351848118,-2000.0,0.00013816,2]
[405839385,1771351848125,-2000.0,0.00013816,2]
[405839386,1771351848131,-2000.0,0.00013816,2]
[405839387,1771351848138,-2000.0,0.00013816,2]
[405839388,1771351848145,-2000.0,0.00013816,2]
[405839389,1771351848153,-226.6191256,0.00013816,2]
[405839390,1771351848160,-2000.0,0.00013816,2]
[405839391,1771351848167,-500.0,0.00013873,2]
[405839392,1771351848174,-500.0,0.00013873,2]
[405839393,1771351848180,-500.0,0.00013873,2]
[405839394,1771351848188,-500.0,0.00013873,2]
[405839395,1771351848196,-500.0,0.00013873,2]
[405839396,1771351848204,-500.0,0.00013873,2]
[405839397,1771351848212,-500.0,0.00013873,2]
[405839398,1771351848221,-163.87964352,0.00013873,2]
[405839399,1771351848230,-500.0,0.00013873,2]
[405839400,1771351848238,-500.0,0.00013873,2]
[405839401,1771351848247,-500.0,0.00013873,2]
[405839402,1771351848257,-500.0,0.00013873,2]
[405839403,1771351848266,-500.0,0.00013873,2]
[405839404,1771351848275,-501.23450591,0.00013873,2]
[405839405,1771351848284,-505.14943602,0.00013873,2]
[405839406,1771351848293,-500.0,0.00013873,2]
[405839407,1771351848302,-500.0,0.00013873,2]
[405839408,1771351848312,-161.87499248,0.00013873,2]
[405839409,1771351848322,-500.0,0.00013873,2]
[405839410,1771351848331,-500.0,0.00013873,2]
[405839411,1771351848341,-525.66819458,0.00013873,2]
[405839412,1771351848350,-161.95965132,0.00013873,2]
[405839413,1771351848360,-500.0,0.00013873,2]
[405839414,1771351848369,-500.0,0.00013873,2]
[405839415,1771351848379,-503.17452108,0.00013873,2]
[405839416,1771351848388,-500.0,0.00013873,2]
[405839417,1771351848398,-501.43225284,0.00013873,2]
[405839418,1771351848407,-500.0,0.00013873,2]
[405839419,1771351848417,-500.0,0.00013873,2]
[405839420,1771351848427,-335.00019172,0.00013873,2]
[405839421,1771351848437,-500.0,0.00013873,2]
[405839422,1771351848447,-500.0,0.00013873,2]
[405839423,1771351848457,-500.0,0.00013873,2]
[405839424,1771351848467,-500.0,0.00013873,2]
[405839425,1771351848477,-500.0,0.00013873,2]
[405839426,1771351848486,-500.0,0.00013873,2]
[405839427,1771351848496,-500.0,0.00013873,2]
[405839428,1771351848505,-500.29634492,0.00013873,2]
[405839429,1771351848515,-561.11210647,0.00013873,2]
[405839430,1771351848524,-523.64780308,0.00013873,2]
[405839431,1771351848534,-170.20434449,0.00013873,2]
[405839432,1771351848543,-500.0,0.00013873,2]
[405839433,1771351848552,-500.0,0.00013873,2]
[405839434,1771351848561,-162.40112722,0.00013873,2]
[405839435,1771351848570,-500.0,0.00013873,2]
[405839436,1771351848580,-500.0,0.00013873,2]
[405839437,1771351848590,-597.93872342,0.00013873,2]
[405839438,1771351848599,-160.44342054,0.00013873,2]
[405839439,1771351848608,-500.0,0.00013873,2]
[405839440,1771351848617,-436.04334629,0.00013873,2]
[405839441,1771351848627,-285.23122629,0.00013873,2]
[405839442,1771351848636,-160.29464371,0.00013873,2]
[405839443,1771351848645,-514.27467488,0.00013873,2]
[405839444,1771351848654,-500.93096914,0.00013873,2]
[405839445,1771351848663,-500.0,0.00013873,2]
[405839446,1771351848672,-500.0,0.00013873,2]
[405839447,1771351848682,-500.0,0.00013873,2]
[405839448,1771351848692,-501.14207764,0.00013873,2]
[405839449,1771351848701,-500.0,0.00013873,2]
[405839450,1771351848711,-559.34470409,0.00013873,2]
[405839451,1771351848721,-161.02829907,0.00013873,2]
[405839452,1771351848730,-500.0,0.00013873,2]
[405839453,1771351848740,-186.11515271,0.00013873,2]
[405839454,1771351848749,-500.0,0.00013873,2]
[405839455,1771351848758,-569.45122683,0.00013873,2]
[405839456,1771351848767,-320.05,0.00013965,2]
[405839457,1771351848776,-594.05284132,0.00013973,2]
[405839458,1771351848786,-230.75,0.00013978,2]
[405839459,1771351848795,-76805.89310854,0.00014227,2]
[405839460,1771351848804,-2500.0,0.00014364,2]
[405839461,1771351848813,-2500.0,0.00014364,2]
[405839462,1771351848823,-2238.87048767,0.00014364,2]
[405839463,1771351848832,-1506.4295813,0.00014364,2]
[405839464,1771351848841,-2500.0,0.00014364,2]
[405839465,1771351848850,-1464.93718194,0.00014364,2]
[405839466,1771351848860,-191.88472966,0.00014364,2]
[405839467,1771351848869,-501.86536618,0.00014421,2]
[405839468,1771351848879,-1000.0,0.00014421,2]
[405839469,1771351848896,-1000.0,0.00014421,2]
[405839470,1771351848907,-1000.0,0.00014421,2]
[405839471,1771351848918,-1000.0,0.00014421,2]
[405839472,1771351848927,-504.64635869,0.00014421,2]
[405839473,1771351848936,-1009.85751715,0.00014421,2]
[405839474,1771351848945,-504.09468333,0.00014421,2]
[405839475,1771351848955,-1000.0,0.00014421,2]
[405839476,1771351848964,-1009.6821238,0.00014421,2]
[405839477,1771351848973,-565.44208777,0.00014421,2]
[405839478,1771351848982,-1000.0,0.00014421,2]
[405839479,1771351848991,-1000.0,0.00014421,2]
[405839480,1771351849000,-1000.0,0.00014421,2]
[405839481,1771351849009,-502.68727614,0.00014421,2]
[405839482,1771351849018,-1000.0,0.00014421,2]
[405839483,1771351849028,-1000.0,0.00014421,2]
[405839484,1771351849037,-1000.0,0.00014421,2]
[405839485,1771351849046,-1000.0,0.00014421,2]
[405839486,1771351849055,-502.22718587,0.00014421,2]
[405839487,1771351849064,-1001.35605949,0.00014421,2]
[405839488,1771351849078,-1002.86775924,0.00014421,2]
[405839489,1771351849087,-1000.0,0.00014421,2]
[405839490,1771351849096,-1000.0,0.00014421,2]
[405839491,1771351849105,-1000.0,0.00014421,2]
[405839492,1771351849117,-1000.0,0.00014421,2]
[405839493,1771351849127,-1000.0,0.00014421,2]
[405839494,1771351849136,-651.60051968,0.00014421,2]
[405839495,1771351849146,-1000.0,0.00014421,2]
[405839496,1771351849155,-1000.0,0.00014421,2]
[405839497,1771351849164,-1000.0,0.00014421,2]
[405839498,1771351849174,-1000.0,0.00014421,2]
[405839499,1771351849183,-1000.0,0.00014421,2]
[405839500,1771351849193,-1000.0,0.00014421,2]
[405839501,1771351849202,-1000.0,0.00014421,2]
[405839502,1771351849211,-1000.0,0.00014421,2]
[405839503,1771351849221,-895.81638304,0.00014421,2]
[405839504,1771351849230,-10103.0,0.0001457,2]
[405839505,1771351849239,-4488.74151012,0.00014727,2]
[405839506,1771351849249,-3000.0,0.00014912,2]
[405839507,1771351849261,-2453.91707801,0.00014912,2]
[405839508,1771351849270,-1360.79622624,0.00014912,2]
[405839509,1771351849280,-1500.0,0.00014968,2]
[405839510,1771351849289,-1500.0,0.00014968,2]
[405839511,1771351849299,-1500.0,0.00014968,2]
[405839512,1771351849309,-1500.0,0.00014968,2]
[405839513,1771351849319,-504.47861685,0.00014968,2]
[405839514,1771351849329,-1500.0,0.00014968,2]
[405839515,1771351849339,-1500.0,0.00014968,2]
[405839516,1771351849350,-1000.0,0.00014968,2]
[405839517,1771351849359,-1597.03636758,0.00014968,2]
[405839518,1771351849368,-1500.0,0.00014968,2]
[405839519,1771351849378,-1500.0,0.00014968,2]
[405839520,1771351849387,-1500.0,0.00014968,2]
[405839521,1771351849398,-501.69367829,0.00014968,2]
[405839522,1771351849408,-1000.0,0.00014968,2]
[405839523,1771351849417,-1500.0,0.00014968,2]
[405839524,1771351849428,-395.07222913,0.00014968,2]
[405839525,1771351849438,-1097.87159044,0.00014968,2]
[405839526,1771351849448,-1500.0,0.00014968,2]
[405839527,1771351849457,-1500.0,0.00014968,2]
[405839528,1771351849467,-1500.0,0.00014968,2]
[405839529,1771351849476,-803.51620924,0.00014968,2]
[405839530,1771351849485,-715.83370402,0.00014968,2]
[405839531,1771351849496,-1500.0,0.00014968,2]
[405839532,1771351849505,-1512.37454404,0.00014968,2]
[405839533,1771351849515,-76805.89310854,0.00015449,2]
[405839534,1771351849524,-3500.0,0.0001546,2]
[405839535,1771351849534,-360.43974274,0.00015516,2]
[405839536,1771351849543,-2000.0,0.00015516,2]
[405839537,1771351849553,-620.78233815,0.00015516,2]
[405839538,1771351849563,-2000.0,0.00015516,2]
[405839539,1771351849573,-2000.0,0.00015516,2]
[405839540,1771351849582,-2000.0,0.00015516,2]
[405839541,1771351849592,-1008.47777759,0.00015516,2]
[405839542,1771351849601,-158.35387756,0.00015516,2]
[405839543,1771351849611,-386.21895781,0.00015516,2]
[405839544,1771351849620,-2000.0,0.00015516,2]
[405839545,1771351849630,-1929.20363046,0.00015516,2]
[405839546,1771351849639,-2000.0,0.00015516,2]
[405839547,1771351849648,-1219.64567907,0.00015516,2]
[405839548,1771351849657,-600.0,0.00015587,2]
[405839549,1771351849667,-481.75678796,0.00015648,2]
[405839550,1771351849757,-1000.0,0.00015754,7]
[405839551,1771351849768,-320.05,0.00015757,2]
[405839552,1771351849777,-230.75,0.00015783,2]
[405839553,1771351849786,-5000.0,0.0001596,2]
[405839554,1771351849796,-177.3195449,0.00015988,2]
[405839555,1771351849807,-276.734435,0.00016,2]
[405839556,1771351849817,-1494.73225771,0.00016008,2]
[405839557,1771351849829,-2500.0,0.00016064,2]
[405839558,1771351849839,-1787.66016397,0.00016064,2]
[405839559,1771351849848,-1007.7222609,0.00016064,2]
[405839560,1771351849858,-2457.49810709,0.00016064,2]
[405839561,1771351849868,-960.3517219,0.00016064,2]
[405839562,1771351849877,-1510.33829166,0.00016064,2]
[405839563,1771351849887,-2000.0,0.00016082,2]
[405839564,1771351849895,-150.0,0.000162,2]
[405839565,1771351849905,-4488.74151012,0.00016314,2]
[405839566,1771351849914,-500.0,0.00016356,2]
[405839567,1771351849923,-500.0,0.00016356,2]
[405839568,1771351849932,-1275.0,0.00016377,2]
[405839569,1771351849941,-1224.627,0.0001638,2]
[405839570,1771351849951,-2452.0,0.0001638,2]
[405839571,1771351849960,-418.979,0.0001638,2]
[405839572,1771351849969,-5973.0,0.0001638,2]
[405839573,1771351849979,-887.51,0.00016438,2]
[405839574,1771351849988,-151.02975848,0.00016438,2]
[405839575,1771351849997,-12563.772035,0.00016441,7]
[405839576,1771351850006,-150.0,0.00016457,2]
[405839577,1771351850016,-2000.0,0.000165,2]
[405839578,1771351850025,-1035.74923491,0.00016612,2]
[405839579,1771351850034,-2751.70990089,0.00016658,2]
[405839580,1771351850043,-76805.89310854,0.00016672,2]
[405839581,1771351850053,-150.0,0.00016714,2]
[405839582,1771351850062,-200.0,0.00016792,2]
[405839583,1771351850073,-4479.21,0.00016891,2]
[405839584,1771351850087,-153.0,0.00016966,3]
[405839585,1771351850096,-150.0,0.00016971,2]
[405839586,1771351850106,-150.0,0.00016982,2]
[405839587,1771351850116,-2000.0,0.00017,2]
[405839588,1771351850126,-150.0,0.00017035,2]
[405839589,1771351850135,-1088.37215301,0.00017037,2]
[405839590,1771351850144,-151.0,0.00017099,2]
[405839591,1771351850155,-156.587,0.00017099,2]
[405839592,1771351850164,-162.380719,0.00017099,2]
[405839593,1771351850173,-159.19814613,0.00017099,2]
[405839594,1771351850182,-277.35679052,0.00017099,2]
[405839595,1771351850192,-500.0,0.00017099,2]
[405839596,1771351850201,-500.0,0.00017099,2]
[405839597,1771351850210,-500.0,0.00017099,2]
[405839598,1771351850220,-500.0,0.00017099,2]
[405839599,1771351850229,-500.0,0.00017099,2]
[405839600,1771351850239,-500.0,0.00017099,2]
[405839601,1771351850248,-500.0,0.00017099,2]
[405839602,1771351850258,-500.0,0.00017099,2]
[405839603,1771351850267,-500.0,0.00017099,2]
[405839604,1771351850276,-500.0,0.00017099,2]
[405839605,1771351850286,-500.0,0.00017099,2]
[405839606,1771351850296,-500.0,0.00017099,2]
[405839607,1771351850305,-500.0,0.00017099,2]
[405839608,1771351850314,-500.0,0.00017099,2]
[405839609,1771351850324,-500.0,0.00017099,2]
[405839610,1771351850334,-500.0,0.00017099,2]
[405839611,1771351850343,-500.0,0.00017099,2]
[405839612,1771351850352,-500.0,0.00017099,2]
[405839613,1771351850361,-500.0,0.00017099,2]
[405839614,1771351850370,-500.0,0.00017099,2]
[405839615,1771351850380,-413.5422657,0.000171,2]
[405839616,1771351850391,-353.93220462,0.000171,2]
[405839617,1771351850400,-150.0,0.00017157,2]
[405839618,1771351850410,-150.0,0.00017186,2]
[405839619,1771351850419,-1517.0,0.00017211,2]
[405839620,1771351850428,-150.0,0.00017229,2]
[405839621,1771351850437,-150.0,0.0001724,2]
[405839622,1771351850447,-1000.0,0.00017241,2]